Workbook

Sheet Main
A1: Dyklog version 0.0.11 (21-10-2017)
O2: Tryk på smileyen for at regne
A4: Flaskestørrelse [L] | B4: 15
A5: Flasketryk [bar] | B5: 200
A6: Flasketryk [bar] | B6: 100
A7: Luftforbrug
A10: Input | B10: 1. dyk | E10: 2. dyk | H10: 3. dyk | L10: Ikke flere dyk i dag ;-)
A11: Ioverfladen kl.: | E11: =B15 -> 10:46:00 | H11: =E15 -> 12:51:00
A12: neddykning kl.: | B12: 10:15:00 | E12: 12:10:00 | H12: 14:30:00
A13: Bundtid [minutter] | B13: 10 | E13: 30 | H13: 16
A14: Samlet opstigningstid [minutter] | B14: =B33+B35+B37+B39+B41+B42 ->  | E14: =E36+E38+E40+E41+E42 -> 6
A15: Ioverfladen kl.: | B15: 10:46:00 | E15: 12:51:00
A16: Mætningsgr.: | B16: =IF(B20>O22,Trindekompression!K44,Lufttabel!G21) -> D | E16: =Lufttabel!H21 -> E | H16: =Lufttabel!K21 -> 0
A17: interval:[timer:min] | E17: =E12-E11 -> 01:24:00 | H17: =H12-H11 -> 01:39:00
A18: Ny mætningsgruppe: | E18: =B16 -> D | F18: a | G18: =Lufttabel!G26 -> A | H18: =E16 -> E | I18: a | J18: =Lufttabel!I26 -> A
A19: Forbelastning: [minutter] | E19: =Lufttabel!G37 -> 14 | H19: =Lufttabel!L37 -> 9
A20: Nitrogentid: [minutter] | B20: =B13+B19 -> 10 | E20: =E13+E19 -> 44 | H20: =H13+H19 -> 25 | O20: 1 dyk | P20: 2 dyk | Q20: 3 dyk
A22: Dybde [meter] | B22: 30 | E22: 19 | H22: 31 | M22: maks nitrogentid: | O22: =LOOKUP(Lufttabel!W3,Lufttabel!$U$14:$U$25,Lufttabel!$V$14:$V$25) -> 35 | P22: =LOOKUP(Lufttabel!X3,Lufttabel!$U$14:$U$25,Lufttabel!$V$14:$V$25) -> 51 | Q22: =IFERROR(LOOKUP(Lufttabel!Y3,Lufttabel!$U$14:$U$25,Lufttabel!$V$14:$V$25),"") -> 17
A23: Dykketid | B23: =B13+B14 ->  | E23: =E13+E14 -> 36
A25: gentagn. Dyk
A30: Output
A31: Dykkerprofil [minutter]
B32: =B22-IF(Trindekompression!K40<>0,12,IF(Trindekompression!K41<>0,9,"")) ->  | E32: =B32/10 -> 
A33: Opstigning til førstestop: | B33: =IF(Lufttabel!W7>LOOKUP(Lufttabel!W7,Lufttabel!U14:U25,Lufttabel!V14:V25),IF(Trindekompression!K40<>0,ROUNDUP((Main!B22-12)/10,0),IF(Trindekompression!K41<>0,ROUNDUP((Main!B22-9)/10,0),IF(Trindekompression!K42<>0,ROUNDUP((Main!B22-6)/10,0),""))),ROUNDUP((B22-4.5)/10,0)) ->  | E33: 3
B34: =IF(Main!$B$20>VLOOKUP(Lufttabel!$W$3,Lufttabel!$U$14:$V$24,2,0),ROUNDUP((B22-12)/10,0),"") -> 
A35: 12 meter dekostop
A37: 9 meter dekostop
A39: 6 meter dekostop
E40: =ROUNDUP((E22-4.5)/10,0) -> 2
A41: 4,5 meter dekostop | B41: =Trindekompression!K43 -> 10 | E41: 3
A42: opst til overfladen | B42: 1 | E42: 1 | H42: 1

Sheet PlanLægning
A1: Dyklog version 0.0.12 ( | B1: =TODAY() -> 2017-11-06 | E1: )
A3: Ikke i brug endnu | X3: Tryk på smileyen for at regne
A4: Flaskestørrelse [L] | B4: 15
A5: Flasketryk [bar] | B5: 200
A6: Flasketryk [bar] | B6: 100
A7: Luftforbrug
A8: Dyk Planlægning
A10: Input | B10: 1. dyk | F10: 2. dyk | J10: 3. dyk | P10: Ikke flere dyk i dag ;-)
A11: Dybde [meter] | B11: 20 | F11: 18 | J11: 30
A12: Bundtid [minutter](ADT) | B12: 28 | F12: 30 | J12: 8
A15: Ioverfladen kl.: | F15: =B19 -> 10:38:00 | J15: =F19 -> 12:51:00
A16: neddykning kl.: | B16: 10:15:00 | F16: 12:10:00 | J16: 14:30:00
A17: Aftalt op klokken | B17: =B16+TIME(0,B30,0) -> 10:49:00 | F17: =F16+TIME(0,F30,0) -> 12:46:00 | J17: =J16+TIME(0,J30,0) -> 14:45:00
A19: Ioverfladen kl.: | B19: 10:38:00 | F19: 12:51:00 | J19: 14:48:00
A21: Output
A23: Mætningsgr.: | B23: =IF(B27>R36,Trindekompression!K44,Lufttabel!G21) -> D | F23: =Lufttabel!H21 -> E | J23: =Lufttabel!I21 -> D
A24: interval:[timer:min](SIT) | F24: =F16-F15 -> 01:32:00 | J24: =J16-J15 -> 01:39:00
A25: Ny mætningsgruppe: | F25: =B23 -> D | G25: a | H25: =Lufttabel!G26 -> A | J25: =F23 -> E | K25: a | L25: =Lufttabel!I26 -> A
A26: Forbelastning: [minutter](RNT) | B26: 0 | F26: =Lufttabel!G37 -> 14 | J26: =Lufttabel!L37 -> 9
A27: Nitrogentid: [minutter](TNT) | B27: =B12+B26 -> 28 | F27: =F12+F26 -> 44 | J27: =J12+J26 -> 17
A30: Dykketid | B30: =B12+B48 -> 34 | F30: =F12+F48 -> 36 | J30: =J12+J48 -> 15
A32: Dykkerprofil [minutter] | U32: gentagn. Dyk
B34: 1. dyk | F34: 2. dyk | J34: 3. dyk | N34: Test | R34: 1 dyk | S34: 2 dyk | T34: 3 dyk
A36: Opstigning til førstestop: | B36: =IF(B27>R37,IF(Trindekompression!K40<>0,ROUNDUP((PlanLægning!B11-12)/10,0),IF(Trindekompression!K41<>0,B11/10,IF(Trindekompression!K42<>0,ROUNDUP((PlanLægning!B11-6)/10,0),IF(Trindekompression!K43<>0,ROUNDUP((B11-4.5)/10,0))))),ROUNDUP((B11-4.5)/10,0)) -> 2 | F36: =IF(F27>S37,IF(Trindekompression!L40<>0,ROUNDUP((PlanLægning!F11-12)/10,0),IF(Trindekompression!L41<>0,F11/10,IF(Trindekompression!L42<>0,ROUNDUP((PlanLægning!F11-6)/10,0),IF(Trindekompression!L43<>0,ROUNDUP((F11-4.5)/10,0))))),ROUNDUP((F11-4.5)/10,0)) -> 2 | J36: =IF(J27>T37,IF(Trindekompression!S40<>0,ROUNDUP((PlanLægning!J11-12)/10,0),IF(Trindekompression!S41<>0,J11/10,IF(Trindekompression!S42<>0,ROUNDUP((PlanLægning!J11-6)/10,0),IF(Trindekompression!S43<>0,ROUNDUP((J11-4.5)/10,0))))),ROUNDUP((J11-4.5)/10,0)) -> 3 | N36: =IF(Lufttabel!W7>LOOKUP(Lufttabel!W7,Lufttabel!$U$14:$U$25,Lufttabel!$V$14:$V$25),IF(Trindekompression!K40<>0,ROUNDUP((PlanLægning!B11-12)/10,0),IF(Trindekompression!K41<>0,B11/10,IF(Trindekompression!K42<>0,ROUNDUP((PlanLægning!B11-6)/10,0),""))),ROUNDUP((B11-4.5)/10,0)) ->  | P36: maks nitrogentid: | R36: =LOOKUP(Lufttabel!W3,Lufttabel!$U$14:$U$25,Lufttabel!$V$14:$V$25) -> 35 | S36: =LOOKUP(Lufttabel!X3,Lufttabel!$U$14:$U$25,Lufttabel!$V$14:$V$25) -> 51 | T36: =IFERROR(LOOKUP(Lufttabel!Y3,Lufttabel!$U$14:$U$25,Lufttabel!$V$14:$V$25),"") -> 17
N37: =IF(PlanLægning!$B$27>VLOOKUP(Lufttabel!$W$3,Lufttabel!$U$14:$V$24,2,0),ROUNDUP((B11-12)/10,0),"") ->  | P37: MDT | R37: =VLOOKUP(Lufttabel!W3,Lufttabel!$U$14:$V$24,2,0) -> 35 | S37: =VLOOKUP(Lufttabel!X3,Lufttabel!$U$14:$V$24,2,0) -> 51 | T37: =VLOOKUP(Lufttabel!Y3,Lufttabel!$U$14:$V$24,2,0) -> 17
A38: 12 meter dekostop | B38: =IF($B$12>$R$37,Trindekompression!K40,0) -> 0 | F38: =IF($F$12>$S$37,Trindekompression!L40,0) -> 0 | P38: AMDT | S38: =S37-F26 -> 37 | T38: =T37-J26 -> 8
A40: 9 meter dekostop | B40: =IF($B$12>$R$37,Trindekompression!K41,0) -> 0 | F40: =IF($F$12>$S$37,Trindekompression!L41,0) -> 0
A42: 6 meter dekostop | B42: =IF($B$12>$R$37,Trindekompression!K42,0) -> 0 | F42: =IF($F$12>$R$37,Trindekompression!L42,0) -> 0
A44: 4,5 meter dekostop | B44: =IF($B$12>$R$37,Trindekompression!K43,3) -> 3 | F44: =IF($F$12>$S$37,Trindekompression!L43,3) -> 3 | J44: 3
A46: opstigning til overfladen | B46: 1 | F46: 1 | J46: 1
A48: Samlet opstigningstid [minutter] | B48: =SUM(B36:D46) -> 6 | F48: =SUM(F36:H46) -> 6 | J48: =SUM(J35:M46) -> 7

Sheet Lufttabel
B2: 12 | C2: 15 | D2: 18 | E2: 21 | F2: 24 | G2: 27 | H2: 30 | I2: 33 | J2: 36 | K2: 39 | L2: 42 | N2: Dybde – Mætningsgruppe | W2: 1.Dyk | X2: 2.Dyk | Y2: 3.Dyk
A3: Bundtid | B3: 19 | C3: 16 | D3: 14 | E3: 12 | F3: 11 | G3: 10 | H3: 9 | I3: 8 | J3: 7 | K3: 7 | L3: 6 | R3: A | S3: 00:00-01:59 | T3: 02:00 | U3: Overfladeinterval | W3: =MIN(IF(B2:L2>=G18,B2:L2)) -> 21 | X3: =MIN(IF(B2:L2>=H18,B2:L2)) -> 18 | Y3: =MIN(IF(B2:L2>=I18,B2:L2)) -> 30 | Z3: Dybde 17 er ikke tabellagt, derfor nærmeste større tabellagt værdi som er 18.
B4: 25 | C4: 20 | D4: 17 | E4: 15 | F4: 13 | G4: 12 | H4: 11 | I4: 10 | J4: 9 | K4: 8 | L4: 7 | Q4: B | R4: 00:00-00:19 | S4: 00:20-01:59 | T4: 02:00 | W4: =MATCH(MIN(IF($B$2:$L$2>=G18,$B$2:$L$2)),$B$2:$L$2,0) -> 4 | X4: =MATCH(MIN(IF($B$2:$L$2>=H18,$B$2:$L$2)),$B$2:$L$2,0) -> 3 | Y4: =MATCH(MIN(IF($B$2:$L$2>=I18,$B$2:$L$2)),$B$2:$L$2,0) -> 7 | Z4: Hvilken kolonne (i tabellen) findes 18 i.
B5: 37 | C5: 29 | D5: 25 | E5: 22 | F5: 20 | G5: 18 | H5: 16 | I5: 11 | J5: 10 | K5: 9 | L5: 8 | P5: C | Q5: 00:00-00:09 | R5: 00:10-00:24 | S5: 00:25-02:59 | T5: 03:00 | W5: =LOOKUP(G18,$L$14:$L$25) -> 18 | X5: =LOOKUP(H18,$L$14:$L$25) -> 18 | Y5: =LOOKUP(I18,$L$14:$L$25) -> 30 | Z5: Dybde 17 er ikke tabellagt, derfor nærmeste mindre tabellagt værdi som er 15. til beregning af forbelastning.
B6: 57 | C6: 41 | D6: 33 | E6: 28 | F6: 24 | G6: 19 | H6: 17 | I6: 14 | J6: 12 | K6: 10 | L6: 9 | O6: D | P6: 00:00-00:09 | Q6: 00:10-00:14 | R6: 00:15-00:29 | S6: 00:30-02:59 | T6: 03:00
B7: 82 | C7: 59 | D7: 44 | E7: 35 | F7: 25 | G7: 20 | N7: E | O7: 00:00-00:09 | P7: 00:10-00:14 | Q7: 00:15-00:24 | R7: 00:25-00:44 | S7: 00:45-03:59 | T7: 04:00 | W7: =MIN(IF(INDIRECT(G29,0)>=G19,INDIRECT(G29,0))) -> 28 | X7: =MIN(IF(INDIRECT(K29,0)>=H19,INDIRECT(K29,0))) -> 33 | Y7: =MIN(IF(INDIRECT(N29,0)>=I19,INDIRECT(N29,0))) -> 9 | Z7: Bundtid 30 er ikke tabellagt, derfor nærmeste større tabellagt værdi som er 33.
B8: 111 | C8: 65 | D8: 51 | M8: F | N8: 00:00-00:19 | O8: 00:20-00:29 | P8: 00:30-00:44 | Q8: 00:45-01:14 | R8: 01:15-01:29 | S8: 01:30-07:59 | T8: 08:00 | W8: =MATCH(MIN(IF(D3:D12>=G19,D3:D12)),D3:D12,0) -> 4 | X8: =MATCH(MIN(IF(E3:E12>=H19,E3:E12)),E3:E12,0) -> 5 | Y8: =MATCH(MIN(IF(F3:F12>=I19,F3:F12)),F3:F12,0) -> 1 | Z8: Hvilken række (i kolonne 3 i tabellen) findes 33 i.
B9: 125 | C9: 75 | L9: G | M9: 00:00-00:24 | N9: 00:25:00:44 | O9: 00:45-00:59 | P9: 01:00-01:14 | Q9: 01:15:01:39 | R9: 01:40-02:09 | S9: 02:10-11:59 | T9: 12:00
L10: H | M10: 00:50-01:04 | N10: 01:05-01:34 | O10: 01:35-02:09 | P10: 02:10-02:59 | Q10: 03:00-03:59 | R10: 04:00-05:39 | S10: 05:40-23-59 | T10: 24:00 | Z10: =MATCH(MIN(IF(D3:D12>=G17;D3:D12));D3:D12;0) = formel i celle W8.
L11: K | M11: 03:00-03:59 | N11: 04:00-04:59 | O11: 05:00-05:59 | P11: 06:00-06:59 | Q11: 07:00-07:59 | R11: 08:00-09:19 | S11: 09:20-38:59 | T11: 39:00
L12: L | M12: 06:00-06:59 | N12: 07:00-09:29 | O12: 08:30-09:59 | P12: 10:00-11:59 | Q12: 12:00-13:59 | R12: 14:00-16:29 | S12: 16:30-47:59 | T12: 48:00 | Z12: Når vi har de 4 (W8) så er det bare at bruge en INDEX-funktion som:
B13: Mætningsgruppe efter overfladeinterval | L13: Meter | M13: G | N13: F | O13: E | P13: D | Q13: C | R13: B | S13: A | U13: Meter | V13: Maks tid uden DEKO
L14: 12 | M14: 137 | N14: 111 | O14: 82 | P14: 57 | Q14: 37 | R14: 25 | S14: 19 | U14: 12 | V14: 125 | Z14: =INDEX({"A";"B";"C";"D";"E";"F";"G"},4) -> D | AA14: =INDEX({"A";"B";"C";"D";"E";"F";"G"};4)
C15: Input | L15: 15 | M15: 115 | N15: 88 | O15: 59 | P15: 41 | Q15: 29 | R15: 20 | S15: 16 | U15: 15 | V15: 75
C16: Formel | L16: 18 | M16: 91 | N16: 68 | O16: 44 | P16: 33 | Q16: 25 | R16: 17 | S16: 14 | U16: 18 | V16: 51 | Z16: Udfordringen er selvfølgelig at finde en metode til at gøre referenceområdet (ovenfor D3:D12)
L17: 21 | M17: 72 | N17: 53 | O17: 37 | P17: 28 | Q17: 22 | R17: 15 | S17: 12 | U17: 21 | V17: 35 | Z17: dynamisk, altså sådan at det ændrer sig til den relevante kolonne afhængig af, hvad der
B18: Dybde | G18: =PlanLægning!B11 -> 20 | H18: =PlanLægning!F11 -> 18 | I18: =PlanLægning!J11 -> 30 | L18: 24 | M18: 57 | N18: 42 | O18: 30 | P18: 24 | Q18: 20 | R18: 13 | S18: 11 | U18: 24 | V18: 25 | Z18: indtastes i G16 og G17. Hertil bruges følgende formel:
B19: Bundtid | G19: =PlanLægning!B12 -> 28 | H19: 30 | I19: =PlanLægning!J12 -> 8 | L19: 27 | M19: 47 | N19: 35 | O19: 26 | P19: 21 | Q19: 18 | R19: 12 | S19: 10 | U19: 27 | V19: 20
L20: 30 | M20: 40 | N20: 30 | O20: 23 | P20: 19 | Q20: 16 | R20: 11 | S20: 9 | U20: 30 | V20: 17 | Z20: ="R3C"&MATCH(MIN(IF(B2:L2>=G16;B2:L2));B2:L2;0)+1&":R12C"&MATCH(MIN(IF(B2:L2>=G16;B2:L2));B2:L2;0)+1
B21: (A-G) | G21: =IF(G19>Main!O22,Trindekompression!K44,INDEX({"A";"B";"C";"D";"E";"F";"G"},MATCH(MIN(IF(INDIRECT(G29,0)>=G19,INDIRECT(G29,0))),INDIRECT(G29,0),0))) -> D | H21: =INDEX({"A";"B";"C";"D";"E";"F";"G"},MATCH(MIN(IF(INDIRECT(K29,0)>=H19+G37,INDIRECT(K29,0))),INDIRECT(K29,0),0)) -> E | I21: =INDEX({"A";"B";"C";"D";"E";"F";"G"},MATCH(MIN(IF(INDIRECT(N29,0)>=I19+L37,INDIRECT(N29,0))),INDIRECT(N29,0),0)) -> D | L21: 33 | M21: 35 | N21: 27 | O21: 21 | P21: 17 | Q21: 14 | R21: 10 | S21: 8 | U21: 33 | V21: 14
L22: 36 | M22: 31 | N22: 24 | O22: 19 | P22: 15 | Q22: 12 | R22: 9 | S22: 7 | U22: 36 | V22: 12 | Z22: Den røde del og den grønne del af formlen er identisk med formlen i W4.
L23: 39 | M23: 27 | N23: 21 | O23: 17 | P23: 14 | Q23: 11 | R23: 8 | S23: 7 | U23: 39 | V23: 10 | Z23: Den del af formlen der går frem til det andet &-tegn returner derfor tekststrengen: R3C4, og hele
B24: Overfladeinterval-tid | G24: =Main!E17 -> 01:24:00 | I24: =Main!H17 -> 01:39:00 | L24: 42 | M24: 25 | N24: 19 | O24: 16 | P24: 13 | Q24: 10 | R24: 7 | S24: 6 | U24: 42 | V24: 9 | Z24: formlen returnerer dermed: R3C4:R12C4 svarende til D3:D12. Denne formel findes i G20, og den vilæ altid returnere
L25: 45 | M25: 23 | N25: 17 | O25: 14 | P25: 11 | Q25: 9 | R25: 7 | S25: 6 | U25: 45 | Z25: en reference der går fra række 3 til 12 og altid den relevante kolonne baseret på indtastninger i G16 og G17.
B26: (A-G, gentagne dyk) | G26: =LOOKUP(G34,{13;14;15;16;17;18;19},{"G";"F";"E";"D";"C";"B";"A"}) -> A | I26: =LOOKUP(K34,{13;14;15;16;17;18;19},{"G";"F";"E";"D";"C";"B";"A"}) -> A | L26: Forbelastning | Z26: Denne reference (tekststreng) kan vi benytte ved hjælp af funktionen INDIRECT.
Z28: I formlen i W8 oven for: =MATCH(MIN(IF(D3:D12>=G17;D3:D12));D3:D12;0) kan vi erstatte referencerne D3:D12 med:
B29: Hjælpeceller: | G29: ="R3C"&MATCH(MIN(IF(B2:L2>=G18,B2:L2)),B2:L2,0)+1&":R12C"&MATCH(MIN(IF(B2:L2>=G18,B2:L2)),B2:L2,0)+1 -> R3C5:R12C5 | K29: ="R3C"&MATCH(MIN(IF(B2:L2>=H18,B2:L2)),B2:L2,0)+1&":R12C"&MATCH(MIN(IF(B2:L2>=H18,B2:L2)),B2:L2,0)+1 -> R3C4:R12C4 | N29: ="R3C"&MATCH(MIN(IF(B2:L2>=I18,B2:L2)),B2:L2,0)+1&":R12C"&MATCH(MIN(IF(B2:L2>=I18,B2:L2)),B2:L2,0)+1 -> R3C8:R12C8 | Q29: Det opmråde hvori der skal findes den mindste værdi der er større end eller lig med Dybde. | Z29: =INDIRECT(G20;0). Formlen i W8 ser herefter således ud:
G30: =MATCH(MIN(IF(INDIRECT(G29,0)>=G19,INDIRECT(G29,0))),INDIRECT(G29,0),0)+2 -> 6 | K30: =MATCH(MIN(IF(INDIRECT(K29,0)>=H19,INDIRECT(K29,0))),INDIRECT(K29,0),0)+2 -> 6 | N30: =MATCH(MIN(IF(INDIRECT(N29,0)>=I19,INDIRECT(N29,0))),INDIRECT(N29,0),0)+2 -> 3 | Q30: Den række (regnet fra række 1 og kolonnen nævnt i G29) hvor den mindste værdi der er større
Q31: end eller lig med Dybde findes. | Z31: =MATCH(MIN(IF(INDIRECT(G20;0)>=G17;INDIRECT(G20;0)));INDIRECT(G20;0);0) som returnerer 4.
G32: ="R"&G30&"C"&13+LOOKUP(G30,{3;4;5;6;7;8;9},{6;5;4;3;2;1;0})&":R"&G30&"C20" -> R6C16:R6C20 | K32: ="R"&K30&"C"&13+LOOKUP(K30,{3;4;5;6;7;8;9},{6;5;4;3;2;1;0})&":R"&K30&"C20" -> R6C16:R6C20 | N32: ="R"&N30&"C"&13+LOOKUP(N30,{3;4;5;6;7;8;9},{6;5;4;3;2;1;0})&":R"&N30&"C20" -> R3C19:R3C20 | Q32: Det opmråde hvori der skal findes den mindste værdi der er større end eller lig med Overfladeinterval-tid.
G33: =MATCH(MIN(IF(--(RIGHT(INDIRECT(G32,0),4))>=G24,--RIGHT(INDIRECT(G32,0),4))),--RIGHT(INDIRECT(G32,0),4),0) -> 4 | K33: =MATCH(MIN(IF(--(RIGHT(INDIRECT(K32,0),4))>=I24,--RIGHT(INDIRECT(K32,0),4))),--RIGHT(INDIRECT(K32,0),4),0) -> 4 | Q33: Offset-værdien i forhol til den første kolonnereference i G32. | Z33: Nu er der tilbage bare at oprette en INDEX-funktion som vist i X14, hvor andet argument erstattes af udtrykket i W31.
G34: =12+LOOKUP(G30,{3;4;5;6;7;8;9},{6;5;4;3;2;1;0})+G33 -> 19 | K34: =12+LOOKUP(K30,{3;4;5;6;7;8;9},{6;5;4;3;2;1;0})+K33 -> 19 | Q34: Hvilken kolonne findes Overfladeinterval-tiden i.
Z35: Bemærk at formlerne i G18 og G20 begge er matrixformler.
B37: Forbelastning: (RNT) | G37: =INDEX($L$13:$S$25,MATCH(X5,$L$13:$L$25,0),MATCH(G26,$L$13:$S$13,0)) -> 14 | L37: =INDEX($L$13:$S$25,MATCH(Y5,$L$13:$L$25,0),MATCH(I26,$L$13:$S$13,0)) -> 9
W38: =Main!E20 -> 44 | Z38: =MAX(IF(B2:L2<=G18,B2:L2)) -> 18

Sheet Trindekompression
A1: Dybde | B1: Tid | C1: Dekompressionsstop | G1: Mætningsgruppe
C2: luft
C3: 12 | D3: 9 | E3: 6 | F3: 4,5
A4: 12 | B4: 150 | F4: 1 | G4: G
A5: 15 | B5: 90 | F5: 5 | G5: G
A6: 18 | B6: 60 | F6: 6 | G6: F
A7: =A6 -> 18 | B7: 70 | F7: 1 | G7: G
A8: 18 | B8: 80 | F8: 16 | G8: G
A9: 21 | B9: 50 | F9: 10 | G9: F
A10: =A9 -> 21 | B10: 60 | F10: 17 | G10: G
A11: 21 | B11: 70 | F11: 24 | G11: H
A12: 21 | B12: 80 | F12: 35 | G12: H
A13: 24 | B13: 40 | F13: 11 | G13: F
A14: =A13 -> 24 | B14: 50 | F14: 19 | G14: G
A15: 24 | B15: 60 | E15: 1 | F15: 28 | G15: G
A16: 24 | B16: 70 | E16: 3 | F16: 38 | G16: G
A17: 27 | B17: 30 | F17: 9 | G17: F
A18: =A17 -> 27 | B18: 40 | F18: 17 | G18: G
A19: 27 | B19: 50 | E19: 3 | F19: 26 | G19: G
A20: 27 | B20: 60 | D20: 2 | E20: 4 | F20: 38 | G20: H
A21: 30 | B21: 25 | F21: 9 | G21: E
A22: =A21 -> 30 | B22: 30 | E22: 1 | F22: 12 | G22: F
A23: 30 | B23: 40 | D23: 1 | E23: 3 | F23: 22 | G23: G
A24: 30 | B24: 50 | D24: 4 | E24: 4 | F24: 35 | G24: H
A25: 33 | B25: 25 | E25: 1 | F25: 11 | G25: F
A26: =A25 -> 33 | B26: 30 | D26: 1 | E26: 2 | F26: 16 | G26: G
A27: 33 | B27: 40 | D27: 4 | E27: 4 | F27: 27 | G27: G
A28: 33 | B28: 50 | D28: 8 | E28: 6 | F28: 41 | G28: H
A29: 36 | B29: 20 | E29: 1 | F29: 9 | G29: E
A30: =A29 -> 36 | B30: 25 | D30: 1 | E30: 2 | F30: 14 | G30: F
A31: 36 | B31: 30 | D31: 3 | E31: 3 | F31: 18 | G31: G
A32: 36 | B32: 40 | C32: 1 | D32: 7 | E32: 4 | F32: 34 | G32: G
A33: 36 | B33: 50 | C33: 4 | D33: 10 | E33: 6 | F33: 48 | G33: H
A34: 39 | B34: 15 | E34: 1 | F34: 6 | G34: F
A35: =A34 -> 39 | B35: 20 | D35: 1 | E35: 2 | F35: 11 | G35: F | K35: 1. Dyk | L35: 2. dyk | M35: 3. Dyk
A36: 39 | B36: 25 | D36: 3 | E36: 2 | F36: 17 | G36: G | K36: input
A37: 39 | B37: 30 | C37: 1 | D37: 4 | E37: 4 | F37: 23 | G37: G | I37: dykkedybden | K37: =PlanLægning!B11 -> 20 | L37: =Main!E22 -> 19 | M37: =Main!H22 -> 31
A38: 39 | B38: 40 | C38: 4 | D38: 7 | E38: 6 | F38: 41 | G38: H | I38: bundtid | K38: =PlanLægning!B12 -> 28 | L38: =Main!E13 -> 30 | M38: =Main!H13 -> 16
A39: 42 | B39: 15 | E39: 2 | F39: 7 | G39: E | K39: Output
A40: =A39 -> 42 | B40: 20 | D40: 2 | E40: 2 | F40: 12 | G40: F | I40: tiden på 12 mt | J40: = | K40: =(OFFSET($A$3,MIN(IF(($A$4:$A$45>=$K$37)*($B$4:$B$45>=$K$38),ROW($A$4:$A$45)-CELL("row",$A$4:$A$45)+1)),ROWS($1:2),,)) -> 0 | L40: =(OFFSET($A$3,MIN(IF(($A$4:$A$45>=$L$37)*($B$4:$B$45>=$L$38),ROW($A$4:$A$45)-CELL("row",$A$4:$A$45)+1)),ROWS($1:2),,)) -> 0 | M40: =(OFFSET($A$3,MIN(IF(($A$4:$A$45>=$M$37)*($B$4:$B$45>=$M$38),ROW($A$4:$A$45)-CELL("row",$A$4:$A$45)+1)),ROWS($1:2),,)) -> 0
A41: 42 | B41: 25 | C41: 1 | D41: 4 | E41: 3 | F41: 18 | G41: G | I41: tiden på 9 m. | J41: = | K41: =(OFFSET($A$3,MIN(IF(($A$4:$A$45>=$K$37)*($B$4:$B$45>=$K$38),ROW($A$4:$A$45)-CELL("row",$A$4:$A$45)+1)),ROWS($1:3),,)) -> 0 | L41: =(OFFSET($A$3,MIN(IF(($A$4:$A$45>=$L$37)*($B$4:$B$45>=$L$38),ROW($A$4:$A$45)-CELL("row",$A$4:$A$45)+1)),ROWS($1:3),,)) -> 0 | M41: =(OFFSET($A$3,MIN(IF(($A$4:$A$45>=$M$37)*($B$4:$B$45>=$M$38),ROW($A$4:$A$45)-CELL("row",$A$4:$A$45)+1)),ROWS($1:3),,)) -> 0
A42: 42 | B42: 30 | C42: 3 | D42: 6 | E42: 4 | F42: 26 | G42: G | I42: tiden på 6 m. | J42: = | K42: =(OFFSET($A$3,MIN(IF(($A$4:$A$45>=$K$37)*($B$4:$B$45>=$K$38),ROW($A$4:$A$45)-CELL("row",$A$4:$A$45)+1)),ROWS($1:4),,)) -> 0 | L42: =(OFFSET($A$3,MIN(IF(($A$4:$A$45>=$L$37)*($B$4:$B$45>=$L$38),ROW($A$4:$A$45)-CELL("row",$A$4:$A$45)+1)),ROWS($1:4),,)) -> 0 | M42: =(OFFSET($A$3,MIN(IF(($A$4:$A$45>=$M$37)*($B$4:$B$45>=$M$38),ROW($A$4:$A$45)-CELL("row",$A$4:$A$45)+1)),ROWS($1:4),,)) -> 1
A43: 45 | B43: 10 | F43: 4 | G43: E | I43: tiden på 4,5m. | J43: = | K43: =(OFFSET($A$3,MIN(IF(($A$4:$A$45>=$K$37)*($B$4:$B$45>=$K$38),ROW($A$4:$A$45)-CELL("row",$A$4:$A$45)+1)),ROWS($1:5),,)) -> 10 | L43: =(OFFSET($A$3,MIN(IF(($A$4:$A$45>=$L$37)*($B$4:$B$45>=$L$38),ROW($A$4:$A$45)-CELL("row",$A$4:$A$45)+1)),ROWS($1:5),,)) -> 10 | M43: =(OFFSET($A$3,MIN(IF(($A$4:$A$45>=$M$37)*($B$4:$B$45>=$M$38),ROW($A$4:$A$45)-CELL("row",$A$4:$A$45)+1)),ROWS($1:5),,)) -> 11
A44: =A43 -> 45 | B44: 15 | D44: 1 | E44: 2 | F44: 8 | G44: E | I44: mætninggr. | J44: = | K44: =(OFFSET($A$3,MIN(IF(($A$4:$A$45>=$K$37)*($B$4:$B$45>=$K$38),ROW($A$4:$A$45)-CELL("row",$A$4:$A$45)+1)),ROWS($1:6),,)) -> F | L44: =(OFFSET($A$3,MIN(IF(($A$4:$A$45>=$L$37)*($B$4:$B$45>=$L$38),ROW($A$4:$A$45)-CELL("row",$A$4:$A$45)+1)),ROWS($1:6),,)) -> F | M44: =(OFFSET($A$3,MIN(IF(($A$4:$A$45>=$M$37)*($B$4:$B$45>=$M$38),ROW($A$4:$A$45)-CELL("row",$A$4:$A$45)+1)),ROWS($1:6),,)) -> F
A45: 45 | B45: 20 | C45: 1 | D45: 3 | E45: 2 | F45: 15 | G45: F

Sheet Setup
A1: Flasker type | B1: Flaske størrelse | C1: Vejret | D1: Vægt | E1: Starttryk | F1: Sluttryk | G1: Dykker dragt | H1: Dyk type | I1: Sigtbarhed
A3: Aluminium | B3: 2 | C3: Diset | D3: 1 | E3: 100 | F3: 0 | G3: 1 delt Våddragt | H3: Sikkerhedsstop | I3: God
A4: Stål | B4: 3 | C4: Klart | D4: 2 | E4: 110 | F4: 10 | G4: 2 delt Våddragt | H4: Tvungen Deco | I4: Gennemsnit
A5: Carbon | B5: 4 | C5: Regn | D5: 3 | E5: 120 | F5: 20 | G5: Semi-Dry | H5: Computerdyk | I5: Dårlig
B6: 7 | C6: Skyet | D6: 4 | E6: 130 | F6: 30 | G6: Shorty
B7: 8 | C7: Sne | D7: 5 | E7: 140 | F7: 40 | G7: Tørdragt
B8: 10 | C8: Storm | D8: 6 | E8: 150 | F8: 50 | G8: Uden Dragt
B9: 11 | C9: Solskin | D9: 7 | E9: 160 | F9: 60
B10: 12 | D10: 8 | E10: 170 | F10: 70
B11: 15 | D11: 9 | E11: 180 | F11: 80
B12: 18 | D12: 10 | E12: 190 | F12: 90
B13: 20 | D13: 11 | E13: 200 | F13: 100
B14: 24 | D14: 12 | E14: 210 | F14: 110
D15: 13 | E15: 220 | F15: 120
D16: 14 | E16: 230 | F16: 130
D17: 15 | E17: 240 | F17: 140
E18: 250 | F18: 150
E19: 260
E20: 270
E21: 280
E22: 290

Sheet Ilt forbrug
A1: Find dit forventetede forbrug i liter for planlagt dyk: | I1: Hvilken flaske kræves til dette dyk. | N1: Maks bundtid | T1: Reservetryk | U1: 50
A2: Dit kendte- | W2: 12 | X2: 15 | Y2: 18 | Z2: 21 | AA2: 24 | AB2: 27 | AC2: 30 | AD2: 33 | AE2: 36 | AF2: 39 | AG2: 42
A3: Luftforbrug pr minut ved overfladen: | E3: 25 | F3: liter/minuttet | I3: dykdybde: | J3: 39 | N3: forbrug i overfladen | O3: 20 | P3: l/min
A5: Forventet dykdybde m.: | D5: 16 | I5: bundtid: | J5: 20 | N5: flaske antal | O5: 2 | P5: stk. | U5: Meter | V5: Maks tid uden DEKO
N6: flaskestørrelse | O6: 15 | P6: liter | U6: 12 | V6: 125
A7: forventet dyktid min.: | D7: 26 | I7: opstigningstid: | J7: =ROUNDUP((J3-4.5)/10,0)+1+4 -> 9 | N7: fyldningstryk | O7: 195 | P7: bar | U7: 15 | V7: 75
N8: Reservetryk | O8: 50 | P8: bar | U8: 18 | V8: 51
A9: Forventet luft forbrug ved dykket: | E9: =D7*E3*(D5/10+1) -> 1690 | F9: liter | I9: dyktid | J9: =J5+J7 -> 29 | N9: Luft til rådighed | O9: =O7-O8 -> 145 | P9: bar | U9: 21 | V9: 35
U10: 24 | V10: 25
I11: forventet forbrug i liter: | J11: =E3*J9*((J3/10)+1) -> 3552.5 | N11: Maks fyldning | O11: =O7*O6*O5 -> 5850 | P11: liter | U11: 27 | V11: 20
A12: Hvor dybt kan jeg dykke med denne flaske | N12: Reserve | O12: =O6*O8 -> 750 | P12: liter | U12: 30 | V12: 17
I13: størrelse på flaske: | J13: =J11/200 -> 17.7625 | N13: Luft til rådighed | O13: =O6*O5*O9 -> 4350 | P13: liter | Q13: =O5*O6*(O7-O8) -> 4350 | U13: 33 | V13: 14
A14: flaske størrelse | C14: 15 | N14: dykdybde | O14: 24 | P14: m | U14: 36 | V14: 12
A15: Fyldningstryk | C15: 200 | D15: =C14*200 -> 3000 | E15: bar | N15: bundtid | O15: 20 | P15: min. | Q15: Resttryk: | R15: =(O6*O7-O18)/O6 -> 77.13333333 | S15: bar | U15: 39 | V15: 10
A16: Reserve | D16: =C14*50 -> 750 | E16: bar | O16: =(O14+10)/10 -> 3.4 | P16: bar | U16: 42 | V16: 9
A17: til rådighed | D17: =C14*150 -> 2250 | E17: bar | I17: Find dit forbrug i liter og liter/min. I overfladen | N17: dyktid | O17: =O15+O26+O27+O28 -> 26 | P17: min. | Q17: =O3*O15*O16 -> 1360 | R17: liter | U17: 45
A18: dyktid | C18: 20 | N18: beregning af luftforbrug ialt: | O18: =O17*O3*O16 -> 1768 | P18: liter | Q18: =(O26+O27+O28)*O3*Q27 -> 174 | R18: liter
I19: input | O19: =O16*O3 -> 68 | P19: l/min | Q19: =SUM(Q17:Q18) -> 1534 | R19: liter | U19: =MIN(IF(W2:AG2>=O14,W2:AG2)) -> 24
A20: maks dybde med denne flaske: | I20: dyktiden: | J20: 20 | K20: min | N20: Maks bundtid | O20: =ROUNDDOWN(O13/O19,0) -> 63 | P20: min.
N21: Maks bundtid uden deko på denne dybde | O21: =VLOOKUP(U19,U6:V17,2,0) -> 25 | P21: min.
I22: dykdybden: | J22: 20 | K22: meter.
B23: Meter | C23: Opstig | D23: bundtid | F23: maks bundtid
B24: 12 | D24: =$C$18-C25 -> 15 | E24: =$E$3*C18*2 -> 1000 | F24: 125 | I24: forbrug: | J24: 140 | K24: bar
C25: =ROUNDUP((B24-4.5)/10,0)+4 -> 5 | O25: tid | P25: dybde | Q25: tryk | R25: Liter
B26: 15 | D26: =$C$18-C27 -> 14 | E26: =$E$3*C18*3 -> 1500 | F26: 75 | I26: flaske størrelse: | J26: 10 | K26: liter | N26: ="Opstigning fra "&O14&"m til 4,5m" -> Opstigning fra 24m til 4,5m | O26: =ROUNDUP((O14-4.5)/10,0) -> 2 | P26: =ROUNDUP(O14-(O14-4.5)/2,0) -> 15 | Q26: =1+P26*0.1 -> 2.5 | R26: =O26*Q26*$O$3*2 -> 200
C27: =ROUNDUP((B26-4.5)/10,0)+4 -> 6 | I27: output | N27: Ophold på sikkerhedsstoppet | O27: 3 | P27: 4.5 | Q27: =1+P27*0.1 -> 1.45 | R27: =O27*Q27*$AK$32*2 -> 348
B28: 18 | D28: =$C$18-C29 -> 14 | E28: =$E$3*C18*4 -> 2000 | F28: 51 | I28: forbrugt i liter. | J28: =J24*J26 -> 1400 | N28: Opstigning til overfladen | O28: 1 | P28: 2.25 | Q28: =1+P28*0.1 -> 1.225 | R28: =O28*Q28*$AK$32*2 -> 98
C29: =ROUNDUP((B28-4.5)/10,0)+4 -> 6 | Q29: Liter | R29: =ROUNDUP(R26+R27+R28,0) -> 646
B30: 21 | D30: =$C$18-C31 -> 14 | E30: =$E$3*$C$18*5 -> 2500 | F30: 35 | I30: forbrug i overfladen: | J30: =J28/J20/(J22/10+1) -> 23.33333333 | K30: l/min. | N30: Minimumstryk | Q30: bar | R30: =ROUNDUP(R29/(O6*O5),0) -> 22
C31: =ROUNDUP((B30-4.5)/10,0)+4 -> 6
B32: 24 | D32: =$C$18-C33 -> 14 | E32: =$E$3*$C$18*6 -> 3000 | F32: 25 | AK32: 40
C33: =ROUNDUP((B32-4.5)/10,0)+4 -> 6 | I33: Find din dyktid | N33: EAD
B34: 27 | D34: =$C$18-C35 -> 13 | E34: =$E$3*$C$18*((B34/10)+1) -> 1850 | F34: 20 | N34: FO2 | O34: 0.32
C35: =ROUNDUP((B34-4.5)/10,0)+4 -> 7 | I35: Dit kendte forbrug- | N35: dybde i meter | O35: 30
B36: 30 | D36: =$C$18-C37 -> 13 | E36: =$E$3*$C$18*((B36/10)+1) -> 2000 | F36: 17 | I36: liter/ minut i overfladen | J36: 20 | K36: liter | N36: Lufttabel meter | O36: =INT((1-O34)*(O35+10)/0.79-10) -> 24
C37: =ROUNDUP((B36-4.5)/10,0)+4 -> 7 | I37: input
B38: 33 | D38: =$C$18-C39 -> 13 | E38: =$E$3*$C$18*((B38/10)+1) -> 2150 | F38: 14 | I38: flaske størrelsen: | J38: 10 | K38: liter
C39: =ROUNDUP((B38-4.5)/10,0)+4 -> 7 | N39: MOD Maksimale operations dybde
B40: 36 | D40: =$C$18-C41 -> 12 | E40: =$E$3*$C$18*((B40/10)+1) -> 2300 | F40: 12 | I40: forbrug | J40: 1400 | K40: liter | N40: dybde | O40: 33
C41: =ROUNDUP((B40-4.5)/10,0)+4 -> 8 | N41: flaskestørrelse i liter | O41: 15
B42: 39 | D42: =$C$18-C43 -> 12 | E42: =$E$3*$C$18*((B42/10)+1) -> 2450 | F42: 10 | I42: dybde | J42: 20 | K42: meter | N42: fyldnings tryk | O42: 210
C43: =ROUNDUP((B42-4.5)/10,0)+4 -> 8 | I43: output | N43: reservetryk | O43: 50
B44: 42 | D44: =$C$18-C45 -> 12 | E44: =$E$3*$C$18*((B44/10)+1) -> 2600 | F44: 9 | I44: dyktid i minutter | J44: =ROUNDUP(J40/(J42/10+1)/J36,0) -> 24 | K44: minutter | N44: luft/min | O44: 20
C45: =ROUNDUP((B44-4.5)/10,0)+4 -> 8
N46: NITROX | O46: =1.4/((O40/10)+1) -> 0.3255813953 | P46: =INT(O46*100) -> 32
I47: BAR | O47: =1.4/O46 -> 4.3 | P47: bar
J48: =O42-O43 -> 160 | K48: bar | N48: MOD meter | O48: =(O47-1)*10 -> 33
J49: =O41 -> 15 | K49: liter
J50: =J48*J49 -> 2400 | K50: i alt liter
I51: dyktid i min. | J51: =INT(J50/(O44*O47)) -> 27

Sheet Ark2
J5: 4,5 m.
I8: 6 m.
H11: 9 m.
G15: 12 m.

Sheet Logblad
B2: Dyk nr.: | P2: Dato:
B3: Sted: | P3: Land:
B4: GPS position: | P4: Område:
B6: Start tryk: | P6: Slut tryk:
B10: I overfladen: | G10: Neddrykning: | M10: Bundtid: | O10: Opstigningstid: | S10: I overflden:
B11: Kl.: | C11: 10 | D11: : | G11: Kl.: | I11: : | K11: + | M11: min. | N11: + | P11: min. | Q11: = | S11: Kl.: | U11: :

Sheet PADI lufttabel
A2: feet | B2: 35 | C2: 40 | D2: 50 | E2: 6 | F2: 70 | G2: 80 | H2: 90 | I2: 100 | J2: 110 | K2: 120 | L2: 130 | M2: 140
A3: meter | B3: 10 | C3: 12 | D3: 15 | E3: 18 | F3: 21 | G3: 24 | H3: 27 | I3: 30 | J3: 33 | K3: 36 | L3: 39 | M3: 42
B4: 10 | C4: 9 | D4: 7 | E4: 6 | F4: 5 | G4: 4 | H4: 4 | I4: 3 | J4: 3 | K4: 3 | L4: 3 | N4: A
B5: 19 | C5: 16 | D5: 13 | E5: 11 | F5: 9 | G5: 8 | H5: 7 | I5: 6 | J5: 6 | K5: 5 | L5: 5 | M5: 4 | N5: B
B6: 25 | C6: 22 | D6: 17 | E6: 14 | F6: 12 | G6: 10 | H6: 9 | I6: 8 | J6: 7 | K6: 6 | L6: 6 | M6: 5 | N6: C
B7: 29 | C7: 25 | D7: 19 | E7: 16 | F7: 13 | G7: 11 | H7: 10 | I7: 9 | J7: 8 | K7: 7 | L7: 7 | M7: 6 | N7: D
B8: 32 | C8: 27 | D8: 21 | E8: 17 | F8: 15 | G8: 13 | H8: 11 | I8: 10 | J8: 9 | K8: 8 | M8: 7 | N8: E
B9: 36 | C9: 31 | D9: 24 | E9: 19 | F9: 16 | G9: 14 | H9: 12 | I9: 11 | J9: 10 | K9: 9 | L9: 8 | M9: 8 | N9: F
B10: 40 | C10: 34 | D10: 26 | E10: 21 | F10: 18 | G10: 15 | H10: 13 | I10: 12 | J10: 11 | K10: 10 | L10: 9 | N10: G
B11: 44 | C11: 37 | D11: 28 | E11: 23 | F11: 19 | G11: 17 | H11: 15 | I11: 13 | J11: 12 | K11: 11 | L11: 10 | N11: H
B12: 48 | C12: 40 | D12: 31 | E12: 25 | F12: 21 | G12: 1 | H12: 16 | I12: 14 | J12: 13
Q37: 36 | R37: 31

Sheet Dykkerlederjournal
A1: Dykkerlederjournal | G1: Sted: ___________________________________________ | P1: Dato: __________ | S1: Dyk nr.: ________
A2: Dykker­leder | C2: Standby-dykker | F2: Hold nr. | G2: Dykkere | H2: D-timer/comp. | I2: Kompas | J2: Flaske str. | K2: Flaske tryk | L2: EANx | M2: MOD | N2: Forbelastning | O2: Max dybde | P2: Bundtid | Q2: Opstigningstid incl. dekostop | R2: Neddykning klokken | S2: Aftalt op klokken | T2: I overfladen klokken | U2: Mætnings-gruppe
A16: Genoplivningssæt | H16: Hold | J16: Bådfører | L16: Lineholder
A17: Flaske 1: ___________ bar
A18: Flaske 2: ___________ bar
A19: Kontrollant:
A21: Alarmtelefon:

Sheet Todo
A1: Lige en lille liste over udvidelsesideer
A3: Dato | B3: Opgave
A4: 2008-12-14 | B4: Mulighed for flere oxygen blandinger
A5: 2008-12-14 | B5: Anvend en smart dykkeralgoritme i stedet for standardtabeller, som supplement
A6: 2008-12-14 | B6: Sæt konservative tider
A7: 2008-12-14 | B7: Beregning af luftforbrug
B8: snorkel
B9: luft
B10: rebreahter
B11: nitrox
B12: udskrive logblad
B13: indtaste dykdata
B14: gemme dykdata i database
B15: bruger info

Sheet trimix
P51: Baseret på dykkertabeller fra: http://www.sportsdykker.dk/onlineupdate/filarkiv/Teknisk%20Udvalg/DSFtabel_udg2.pdf
